fUSD/lending_fUSD_20240329
["ID","MTS","AMOUNT","RATE_DAILY","PERIOD"]
[320949798,1711720790362,-500.0,0.00049315,120]
[320949799,1711720790385,-500.0,0.00049315,120]
[320949800,1711720790408,-500.0,0.00049315,120]
[320949801,1711720790430,-500.0,0.00049315,120]
[320949802,1711720790452,-500.0,0.00049315,120]
[320949803,1711720790474,-657.98,0.00049315,120]
[320949804,1711720790497,-500.0,0.00049315,120]
[320949805,1711720790520,-1289.63,0.00049315,120]
[320949806,1711720790545,-982.84,0.00049315,120]
[320949807,1711720790567,-500.0,0.00049315,120]
[320949808,1711720790590,-573.39,0.00049315,120]
[320949809,1711720790613,-500.0,0.00049315,120]
[320949810,1711720790637,-500.0,0.00049315,120]
[320949811,1711720790660,-738.25,0.00049315,120]
[320949812,1711720790684,-506.06535477,0.00049315,120]
[320949813,1711720790706,-500.0,0.00049315,120]
[320949814,1711720790730,-500.0,0.00049315,120]
[320949815,1711720790757,-505.60225642,0.00049315,120]
[320949816,1711720790780,-500.0,0.00049315,120]
[320949817,1711720790804,-522.28159999,0.00049315,120]
[320949818,1711720790828,-843.48,0.00049315,120]
[320949819,1711720790851,-978.77,0.00049315,120]
[320949820,1711720790874,-500.0,0.00049315,120]
[320949821,1711720790897,-500.0,0.00049315,120]
[320949822,1711720790922,-500.0,0.00049315,120]
[320949823,1711720790944,-500.0,0.00049315,120]
[320949824,1711720790967,-843.84,0.00049315,120]
[320949825,1711720790992,-1322.55,0.00049315,120]
[320949826,1711720791017,-500.0,0.00049315,120]
[320949827,1711720791040,-682.08,0.00049315,120]
[320949828,1711720791063,-500.0,0.00049315,120]
[320949829,1711720791087,-500.0,0.00049315,120]
[320949830,1711720791111,-500.0,0.00049315,120]
[320949831,1711720791135,-500.0,0.00049315,120]
[320949832,1711720791160,-5543.25,0.00049315,120]
[320949833,1711720791184,-500.0,0.00049315,120]
[320949834,1711720791207,-500.0,0.00049315,120]
[320949835,1711720791230,-504.76592393,0.00049315,120]
[320949836,1711720791254,-1906.56,0.00049315,120]
[320949837,1711720791276,-1000.61,0.00049315,120]
[320949838,1711720791299,-1386.55,0.00049315,120]
[320949839,1711720791324,-500.0,0.00049315,120]
[320949840,1711720791349,-500.0,0.00049315,120]
[320949841,1711720791373,-686.77,0.00049315,120]
[320949842,1711720791397,-500.0,0.00049315,120]
[320949843,1711720791421,-500.0,0.00049315,120]
[320949844,1711720791445,-655.74,0.00049315,120]
[320949845,1711720791469,-674.67,0.00049315,120]
[320949846,1711720791494,-500.0,0.00049315,120]
[320949847,1711720791517,-537.19,0.00049315,120]
[320949848,1711720791546,-783.67,0.00049315,120]
[320949849,1711720791571,-516.86926294,0.00049315,120]
[320949850,1711720791595,-662.58,0.00049315,120]
[320949851,1711720791618,-500.0,0.00049315,120]
[320949852,1711720791643,-500.0,0.00049315,120]
[320949853,1711720791666,-500.0,0.00049315,120]
[320949854,1711720791689,-500.0,0.00049315,120]
[320949855,1711720791711,-500.0,0.00049315,120]
[320949856,1711720791735,-2695.42,0.00049315,120]
[320949857,1711720791759,-1016.29,0.00049315,120]
[320949858,1711720791782,-500.0,0.00049315,120]
[320949859,1711720791804,-500.0,0.00049315,120]
[320949860,1711720791827,-500.0,0.00049315,120]
[320949861,1711720791851,-500.0,0.00049315,120]
[320949862,1711720791873,-1204.3,0.00049315,120]
[320949863,1711720791896,-500.0,0.00049315,120]
[320949864,1711720791919,-500.0,0.00049315,120]
[320949865,1711720791943,-1057.15,0.00049315,120]
[320949866,1711720793723,-2786.73,0.00049315,120]
[320949867,1711720793758,-500.0,0.00049315,120]
[320949868,1711720793787,-509.73983134,0.00049315,120]
[320949869,1711720793817,-1227.17,0.00049315,120]
[320949870,1711720793840,-500.0,0.00049315,120]
[320949871,1711720793865,-500.0,0.00049315,120]
[320949872,1711720793889,-508.73467887,0.00049315,120]
[320949873,1711720793913,-500.0,0.00049315,120]
[320949874,1711720793937,-2575.15,0.00049315,120]
[320949875,1711720793959,-522.22489198,0.00049315,120]
[320949876,1711720793981,-500.0,0.00049315,120]
[320949877,1711720794005,-500.0,0.00049315,120]
[320949878,1711720794026,-1486.45,0.00049315,120]
[320949879,1711720794049,-500.0,0.00049315,120]
[320949880,1711720794073,-2776.71,0.00049315,120]
[320949881,1711720794096,-500.0,0.00049315,120]
[320949882,1711720794119,-500.0,0.00049315,120]
[320949883,1711720794143,-500.0,0.00049315,120]
[320949884,1711720794166,-500.0,0.00049315,120]
[320949885,1711720794190,-802.46,0.00049315,120]
[320949886,1711720794216,-918.94,0.00049315,120]
[320949887,1711720794240,-500.0,0.00049315,120]
[320949888,1711720794264,-500.0,0.00049315,120]
[320949889,1711720794287,-521.52,0.00049315,120]
[320949890,1711720794310,-500.0,0.00049315,120]
[320949891,1711720794334,-500.0,0.00049315,120]
[320949892,1711720794357,-500.0,0.00049315,120]
[320949893,1711720794380,-587.32,0.00049315,120]
[320949894,1711720794403,-500.0,0.00049315,120]
[320949895,1711720794426,-500.0,0.00049315,120]
[320949896,1711720794449,-500.0,0.00049315,120]
[320949897,1711720794472,-500.0,0.00049315,120]
[320949898,1711720794495,-502.04271547,0.00049315,120]
[320949899,1711720794518,-500.0,0.00049315,120]
[320949900,1711720794544,-500.0,0.00049315,120]
[320949901,1711720794567,-1338.91,0.00049315,120]
[320949902,1711720794590,-500.0,0.00049315,120]
[320949903,1711720794614,-500.0,0.00049315,120]
[320949904,1711720794637,-500.0,0.00049315,120]
[320949905,1711720794660,-500.0,0.00049315,120]
[320949906,1711720794683,-500.0,0.00049315,120]
[320949907,1711720794705,-527.0,0.00049315,120]
[320949908,1711720794729,-500.0,0.00049315,120]
[320949909,1711720794751,-500.0,0.00049315,120]
[320949910,1711720794773,-500.0,0.00049315,120]
[320949911,1711720794801,-1005.61,0.00049315,120]
[320949912,1711720794832,-500.0,0.00049315,120]
[320949913,1711720794858,-15697.87,0.00049315,120]
[320949914,1711720794883,-500.0,0.00049315,120]
[320949915,1711720794909,-500.0,0.00049315,120]
[320949916,1711720794937,-2485.09,0.00049315,120]
[320949917,1711720794960,-500.0,0.00049315,120]
[320949918,1711720794981,-367.59403023,0.00049315,120]
[320949919,1711720795004,-500.0,0.00049315,120]
[320949920,1711720795025,-500.0,0.00049315,120]
[320949921,1711720795051,-500.0,0.00049315,120]
[320949922,1711720795074,-505.59557218,0.00049315,120]
[320949923,1711720795098,-1196.02,0.00049315,120]
[320949924,1711720795121,-500.0,0.00049315,120]
[320949925,1711720795144,-506.92042481,0.00049315,120]
[320949926,1711720795167,-943.79,0.00049315,120]
[320949927,1711720795191,-2943.34,0.00049315,120]
[320949928,1711720795213,-174.81189889,0.00049315,120]
[320949929,1711720795236,-500.0,0.00049315,120]
[320949930,1711720795259,-500.0,0.00049315,120]
[320949931,1711720795282,-500.0,0.00049315,120]
[320949932,1711720795304,-233.63078955,0.00049315,30]
[320949933,1711720795327,-500.0,0.00049315,120]
[320949934,1711720795351,-500.0,0.00049315,120]
[320949935,1711720795375,-520.11,0.00049315,120]
[320949936,1711720795398,-500.0,0.00049315,120]
[320949937,1711720795421,-10368.2,0.00049315,120]
[320949938,1711720795443,-1244.76,0.00049315,120]
[320949939,1711720795468,-666.66,0.00049315,120]
[320949940,1711720795491,-500.0,0.00049315,120]
[320949941,1711720795513,-500.0,0.00049315,120]
[320949942,1711720795753,500.0,0.00049315,120]
[320949943,1711720795806,500.0,0.00049315,120]
[320949944,1711720796017,37611.33220227,0.00025,2]
[320949945,1711720796061,500.0,0.00049315,120]
[320949946,1711720796089,500.0,0.00049315,120]
[320949947,1711720796130,513.72354042,0.00049315,120]
[320949948,1711720796240,500.0,0.00049315,120]
[320949949,1711720796528,500.0,0.00049315,120]
[320949950,1711720796572,500.0,0.00049315,120]
[320949951,1711720796606,600.0,0.00048,49]
[320949952,1711720796691,537.0,0.0004822,30]
[320949953,1711720796848,537.0,0.00048494,30]
[320949954,1711720796883,500.0,0.00049315,120]
[320949955,1711720796910,537.0,0.00048767,30]
[320949956,1711720796952,539.0,0.00049041,30]
[320949957,1711720796986,500.0,0.00049315,120]
[320949958,1711720797069,214.92011281,0.00024999,2]
[320949959,1711720797094,3148.33989645,0.00023842,2]
[320949960,1711720797135,500.0,0.00049315,120]
[320949961,1711720797175,511.0,0.0004822,30]
[320949962,1711720797457,500.0,0.00049315,120]
[320949963,1711720797492,500.0,0.00049315,120]
[320949964,1711720797523,500.0,0.00049315,120]
[320949965,1711720797574,500.0,0.00049315,120]
[320949966,1711720797609,781.27637635,0.00024999,2]
[320949967,1711720797661,1219.18866587,0.00024999,2]
[320949968,1711720797706,277.63102184,0.00024999,2]
[320949969,1711720797746,150.0,0.00031905,10]
[320949970,1711720797775,150.0,0.00031972,10]
[320949971,1711720797806,150.0,0.00031981,10]
[320949972,1711720797844,500.0,0.00049315,120]
[320949973,1711720797914,500.0,0.00049315,120]
[320949974,1711720797940,2000.0,0.00024999,2]
[320949975,1711720798009,155.0,0.00023841,2]
[320949976,1711720798047,155.0,0.00048,15]
[320949977,1711720798647,295.07295522,0.00023841,2]
[320949978,1711720798920,1019.73936635,0.00028,10]
[320949979,1711720799489,500.0,0.00049315,120]
[320949980,1711720799916,600.0,0.00025,2]
[320949981,1711720800096,5362.05679144,0.00023841,2]
[320949982,1711720800125,500.0,0.00049315,120]
[320949983,1711720800813,441.01478568,0.0004,15]
[320949984,1711720801321,509.8097135,0.00049315,120]
[320949985,1711720801948,500.0,0.00049315,120]
[320949986,1711720802418,530.39105805,0.00023841,2]
[320949987,1711720802444,155.0,0.00023841,2]
[320949988,1711720802755,570.22,0.00049315,120]
[320949989,1711720802788,211.786935,0.00046603,30]
[320949990,1711720803550,766.1,0.00049315,120]
[320949991,1711720803676,869.56,0.00049315,120]
[320949992,1711720803975,1500.0,0.00041096,120]
[320949993,1711720804667,500.0,0.00049315,120]
[320949994,1711720804753,189.72599,0.00046603,30]
[320949995,1711720805333,500.0,0.00049315,120]
[320949996,1711720806144,189.72599,0.00048933,30]
[320949997,1711720806227,153.01972037,0.00049315,120]
[320949998,1711720807261,360.53539958,0.00025,2]
[320949999,1711720815594,155.0,0.00025,2]
[320950000,1711720823918,168.96,0.00024989,2]
[320950001,1711720824518,155.0,0.00024972,2]
[320950008,1711720830609,325.65308426,0.00024988,2]
[320950009,1711720851779,8723.37,0.00024958,2]
[320950010,1711720873692,250.0,0.0002482,2]
[320950011,1711720892688,789.44454929,0.00022587,2]
[320950036,1711720906795,1292.14,0.00022902,2]
[320950037,1711720921934,-1019.73936635,0.00028,10]
[320950038,1711720934268,14506.3255,0.00024958,2]
[320950039,1711720945371,2057.35,0.00024583,2]
[320950040,1711720974452,-1023.25239434,0.00028,10]
[320950041,1711720974498,2454.07517654,0.00024958,2]
[320950042,1711720988832,2251.74041749,0.00024958,2]
[320950043,1711720991990,201.5,0.00024815,10]
[320950044,1711721010314,741.08,0.00024452,2]
[320950045,1711721010380,741.08,0.00024459,2]
[320950046,1711721010483,5221.09,0.00024452,2]
[320950047,1711721010614,741.08,0.00024465,2]
[320950048,1711721011017,741.08,0.00024472,2]
[320950049,1711721011457,741.08,0.00024478,2]
[320950050,1711721011717,741.08,0.00024485,2]
[320950051,1711721011921,741.08,0.00024491,2]
[320950052,1711721012174,741.08,0.00024497,2]
[320950053,1711721012565,741.08,0.00024504,2]
[320950054,1711721012825,741.08,0.0002451,2]
[320950055,1711721013048,741.08,0.00024517,2]
[320950056,1711721013278,741.08,0.00024523,2]
[320950057,1711721013537,741.08,0.0002453,2]
[320950058,1711721013960,741.08,0.00024536,2]
[320950059,1711721014237,741.08,0.00024543,2]
[320950060,1711721014468,741.08,0.00024549,2]
[320950061,1711721014725,741.08,0.00024555,2]
[320950062,1711721014949,741.08,0.00024562,2]
[320950063,1711721015263,741.08,0.00024568,2]
[320950064,1711721015465,741.08,0.00024575,2]
[320950065,1711721016119,406.48055709,0.00024071,2]
[320950066,1711721016286,4491.7512,0.00024944,2]
[320950067,1711721017491,1271.18697565,0.00042658,120]
[320950068,1711721035091,152.402122,0.00042658,46]
[320950069,1711721035947,152.402122,0.00042658,46]
[320950070,1711721036567,152.402122,0.00042658,46]
[320950071,1711721037300,152.402122,0.00042658,46]
[320950072,1711721037954,152.402122,0.00042658,46]
[320950073,1711721038890,500.0,0.00024798,2]
[320950074,1711721052094,-201.5,0.00025423,10]
[320950075,1711721052117,-201.5,0.00026031,10]
[320950076,1711721052143,-201.5,0.00026639,10]
[320950077,1711721062139,240.12,0.00024752,2]
[320950078,1711721069672,9103.56592489,0.00024931,2]
[320950079,1711721129528,-4704.44008421,0.00025013,2]
[320950080,1711721129548,-1364.15268736,0.00025013,2]
[320950081,1711721129568,-1923.07231129,0.00025013,2]
[320950082,1711721129588,-155.0,0.00025013,2]
[320950083,1711721129607,-784.66705129,0.00025014,2]
[320950084,1711721129626,-155.0,0.00025014,2]
[320950085,1711721129644,-232.67634305,0.00025014,2]
[320950086,1711721129667,-2980.71114309,0.00025014,2]
[320950087,1711721129686,-277.63102184,0.00025014,2]
[320950088,1711721129707,-35078.53760352,0.00025014,2]
[320950089,1711721129727,-155.0,0.00025015,2]
[320950090,1711721129747,-406.41408574,0.00025015,2]
[320950091,1711721129766,-5948.31165156,0.00025015,2]
[320950092,1711721129784,-2139.4702675,0.00025015,2]
[320950093,1711721129803,-1758.11820592,0.00025015,2]
[320950094,1711721129824,-437.38748594,0.00025015,2]
[320950095,1711721129845,-855.41571122,0.00025015,2]
[320950096,1711721129865,-4384.77639282,0.00025015,2]
[320950097,1711721129889,-301.94769333,0.00025016,2]
[320950098,1711721129907,-262.41497348,0.00025016,2]
[320950099,1711721129926,-160.64027053,0.00025016,2]
[320950100,1711721129948,-325.65308426,0.00025016,2]
[320950101,1711721129967,-206.65417525,0.00025016,2]
[320950102,1711721129985,-155.0,0.00025016,2]
[320950103,1711721130005,-203.17771483,0.00025016,2]
[320950104,1711721130023,-807.02989859,0.00025017,2]
[320950105,1711721130042,-295.07295522,0.00025017,2]
[320950106,1711721130060,-445.80027611,0.00025018,2]
[320950107,1711721130078,-2347.63404214,0.00025018,2]
[320950108,1711721130096,-163.66719778,0.00025018,2]
[320950109,1711721130116,-268.29906986,0.00025018,2]
[320950110,1711721130139,-1381.35613307,0.00025018,2]
[320950111,1711721130158,-155.0,0.00025018,2]
[320950112,1711721130176,-716.0,0.00025018,2]
[320950113,1711721130196,-4310.29399998,0.00025019,2]
[320950114,1711721130217,-155.0,0.00025019,2]
[320950115,1711721130239,-1219.18866587,0.00025019,2]
[320950116,1711721130260,-4180.97479576,0.00025019,2]
[320950117,1711721130279,-4301.72689937,0.00025019,2]
[320950118,1711721130299,-1000.0,0.0002502,2]
[320950119,1711721130319,-250.31075792,0.0002502,2]
[320950120,1711721130338,-781.27637635,0.0002502,2]
[320950121,1711721130357,-3067.66199381,0.00025021,2]
[320950122,1711721130378,-5362.05679144,0.00025021,2]
[320950123,1711721130397,-155.0,0.00025021,2]
[320950124,1711721130417,-138259.48816097,0.0002503,2]
[320950125,1711721130435,-300.0,0.00025033,2]
[320950126,1711721130454,-150.0,0.00025033,2]
[320950127,1711721130473,-300.0,0.00025033,2]
[320950128,1711721130492,-8939.35171731,0.00025036,2]
[320950129,1711721130512,-5000.0,0.00025041,2]
[320950130,1711721130532,-1333.33333334,0.00025044,2]
[320950131,1711721130551,-719.09,0.00025049,2]
[320950132,1711721130570,-2436.0,0.00025049,2]
[320950133,1711721130589,-287.4,0.0002506,2]
[320950134,1711721130609,-546.61,0.00025086,2]
[320950135,1711721130629,-11948.95,0.00025087,2]
[320950136,1711721130651,-2292.69004989,0.00025089,2]
[320950137,1711721130671,-988.82,0.00025089,2]
[320950138,1711721130690,-499.99,0.00025089,2]
[320950139,1711721130710,-6734.23,0.00025089,2]
[320950140,1711721130728,-150.99,0.00025089,2]
[320950141,1711721130749,-155.72729125,0.00025097,2]
[320950142,1711721130768,-2342.08393912,0.00025097,2]
[320950143,1711721130787,-155.0,0.00025097,2]
[320950144,1711721130806,-466.24502877,0.00025097,2]
[320950145,1711721130824,-155.0,0.00025097,2]
[320950146,1711721130845,-259.73532178,0.00025097,2]
[320950147,1711721130863,-532.99760547,0.00025097,2]
[320950148,1711721130883,-403.99803161,0.00025097,2]
[320950149,1711721130902,-215.32495555,0.00025097,2]
[320950150,1711721130921,-233.63078955,0.00025097,2]
[320950151,1711721130939,-361.10221362,0.00025097,2]
[320950152,1711721130958,-229.66414078,0.00025097,2]
[320950153,1711721130977,-260.7652174,0.00025097,2]
[320950154,1711721130997,-1239.51049698,0.00025097,2]
[320950155,1711721131016,-3363.69415921,0.00025097,2]
[320950156,1711721131035,-680.30955827,0.00025097,2]
[320950157,1711721131054,-5251.95883984,0.00025097,2]
[320950158,1711721131076,-1249.19045626,0.00025098,2]
[320950159,1711721131097,-21472.08633867,0.00025098,2]
[320950160,1711721131115,-500.0,0.00025099,2]
[320950161,1711721131135,-500.0,0.00025099,2]
[320950162,1711721131154,-500.0,0.00025099,2]
[320950163,1711721131174,-500.0,0.00025099,2]
[320950164,1711721131193,-500.0,0.00025099,2]
[320950165,1711721131212,-500.0,0.00025099,2]
[320950166,1711721131234,-500.0,0.00025099,2]
[320950167,1711721131255,-500.0,0.00025099,2]
[320950168,1711721131275,-491.87139476,0.00025099,2]
[320950169,1711721131297,-500.0,0.00025099,2]
[320950170,1711721131319,-13000.0,0.000251,2]
[320950171,1711721131339,-3156.76144766,0.000251,2]
[320950172,1711721131539,10563.15040586,0.00025012,2]
[320950173,1711721131641,166.50126181,0.00025012,2]
[320950174,1711721132118,5362.05679144,0.00025012,2]
[320950175,1711721141618,21026.29533264,0.00025028,2]
[320950176,1711721144533,170.51,0.00016712,2]
[320950177,1711721147283,-202.64338095,0.0002513,2]
[320950178,1711721147303,-1758.11820592,0.0002513,2]
[320950179,1711721147322,-159.98366423,0.0002513,2]
[320950180,1711721147341,-500.0,0.00025131,2]
[320950181,1711721147364,-1292.14,0.00025166,2]
[320950182,1711721147640,435.78981872,0.0002513,2]
[320950183,1711721157707,-769.18081585,0.00025767,2]
[320950184,1711721157728,-156.42178709,0.00025768,2]
[320950185,1711721157747,-1363.35991343,0.00025772,2]
[320950186,1711721157765,-186.93,0.00025843,2]
[320950187,1711721157784,-167.0,0.00025924,2]
[320950188,1711721161728,12454.42,0.00025872,2]
[320950189,1711721178545,-251.09595476,0.00026035,2]
[320950190,1711721178568,-175.74,0.00026124,2]
[320950191,1711721178589,-175.74,0.00026196,2]
[320950192,1711721178611,-175.74,0.00026267,2]
[320950193,1711721178632,-1768.82,0.00026285,2]
[320950194,1711721178653,-218.07,0.0002629,2]
[320950195,1711721178677,-4230.98443162,0.00026296,2]
[320950196,1711721178699,-535.143516,0.00026296,2]
[320950197,1711721178720,-155.0,0.00026297,2]
[320950198,1711721178741,-598.9490416,0.00026297,2]
[320950199,1711721178761,-300.0,0.00026297,2]
[320950200,1711721178781,-150.0,0.00026297,2]
[320950201,1711721178800,-242.81884259,0.00026298,2]
[320950202,1711721178823,-449.37562062,0.00026298,2]
[320950203,1711721178842,-336.47626559,0.00026298,2]
[320950204,1711721178862,-1658.94991598,0.00026298,2]
[320950205,1711721178882,-155.60018246,0.00026298,2]
[320950206,1711721178901,-155.0,0.00026298,2]
[320950207,1711721178922,-4310.29399998,0.00026298,2]
[320950208,1711721178943,-1931.6221303,0.00026298,2]
[320950209,1711721178963,-283.99826505,0.00026298,2]
[320950210,1711721178983,-1427.41426953,0.00026298,2]
[320950211,1711721179002,-155.80461378,0.00026298,2]
[320950212,1711721179022,-9916.77991822,0.00026298,2]
[320950213,1711721179042,-781.27637635,0.00026298,2]
[320950214,1711721179062,-264.06723915,0.00026298,2]
[320950215,1711721179082,-188.7540932,0.00026298,2]
[320950216,1711721179101,-784.66705129,0.00026298,2]
[320950217,1711721179121,-2347.63404214,0.00026298,2]
[320950218,1711721179140,-2000.0,0.00026298,2]
[320950219,1711721179160,-432.1714812,0.00026298,2]
[320950220,1711721179179,-277.63102184,0.00026298,2]
[320950221,1711721179201,-4180.97479576,0.00026298,2]
[320950222,1711721179222,-2107.73900796,0.00026298,2]
[320950223,1711721179243,-4750.66200435,0.00026298,2]
[320950224,1711721179264,-232.67634305,0.00026298,2]
[320950225,1711721179285,-406.41408574,0.00026298,2]
[320950226,1711721179306,-5091.18259639,0.00026298,2]
[320950227,1711721179326,-306.36123066,0.00026298,2]
[320950228,1711721179347,-156.72132123,0.00026298,2]
[320950229,1711721179370,-853.2746071,0.00026298,2]
[320950230,1711721179391,-273.25364604,0.00026298,2]
[320950231,1711721179411,-206.65417525,0.00026298,2]
[320950232,1711721179432,-1810.11672551,0.00026298,2]
[320950233,1711721179452,-586.79650248,0.00026298,2]
[320950234,1711721179473,-1219.18866587,0.00026298,2]
[320950235,1711721179494,-165.68447827,0.00026298,2]
[320950236,1711721179514,-2195.31921653,0.00026298,2]
[320950237,1711721179536,-254.06252951,0.00026298,2]
[320950238,1711721179557,-238.91230638,0.00026299,2]
[320950239,1711721179576,-736.42959233,0.00026299,2]
[320950240,1711721179597,-319.30622196,0.00026299,2]
[320950241,1711721179617,-776.83603317,0.00026299,2]
[320950242,1711721179639,-283.76644657,0.00026299,2]
[320950243,1711721179661,-238.30504615,0.00026299,2]
[320950244,1711721179684,-157.28239816,0.00026299,2]
[320950245,1711721179708,-34638.74007303,0.000263,2]
[320950249,1711721325766,400.0,0.00023668,2]
[320950252,1711721371094,-498.42506758,0.00025943,2]
[320950253,1711721402475,1258.83,0.00023816,2]
[320950281,1711721431643,-169.35,0.00025666,2]
[320950283,1711721431653,-201.68937194,0.00025772,2]
[320950286,1711721431671,-4108.60462804,0.00025772,2]
[320950289,1711721431680,-4211.48426735,0.00025773,2]
[320950291,1711721431692,-2382.18573265,0.00025773,2]
[320950293,1711721431701,-256.81426743,0.00025854,2]
[320950295,1711721431726,-149.59981831,0.00025854,2]
[320950296,1711721431739,-523.67638115,0.00025855,2]
[320950297,1711721431751,-1119.55361885,0.00025855,2]
[320950298,1711721431760,-84.40866482,0.00025939,2]
[320950299,1711721431776,-2248.36133518,0.00025939,2]
[320950300,1711721431785,-676.63866482,0.00025943,2]
[320950301,1711721431807,-700.0,0.00025943,2]
[320950302,1711721431819,-527.87075889,0.00025943,2]
[320950303,1711721431830,-126.65045683,0.00025943,2]
[320950304,1711721431852,-1003.93789237,0.00025943,2]
[320950305,1711721431861,-1356.41598308,0.00025944,2]
[320950306,1711721431873,-648.28401692,0.00025944,2]
[320950307,1711721431882,-1848.33990544,0.00026019,2]
[320950308,1711721431893,-6987.03612368,0.00026019,2]
[320950309,1711721431905,-26.56138383,0.00026019,2]
[320950310,1711721431917,-3392.17,0.0002602,2]
[320950311,1711721431927,-1258.83,0.0002608,2]
[320950312,1711721431937,-172.53,0.00026092,2]
[320950313,1711721431949,-300.0,0.00026124,2]
[320950314,1711721431959,-164.0,0.00026124,2]
[320950315,1711721431969,-150.0,0.00026124,2]
[320950316,1711721431980,-991.38,0.00026125,2]
[320950317,1711721431990,-200.0,0.00026125,2]
[320950318,1711721431998,-2492.97,0.00026273,2]
[320950319,1711721432007,-155.0,0.00026298,2]
[320950320,1711721432016,-527.61106394,0.00026298,2]
[320950321,1711721432026,-150.99,0.00026299,2]
[320950322,1711721432035,-1000.0,0.00026299,2]
[320950323,1711721432044,-286.57397499,0.00026299,2]
[320950324,1711721432054,-1233.83329503,0.00026299,2]
[320950325,1711721432063,-446.35028221,0.00026299,2]
[320950326,1711721432086,-547.63754669,0.00026299,2]
[320950327,1711721432101,-408.75539581,0.00026299,2]
[320950328,1711721432113,-880.46,0.00026299,2]
[320950329,1711721432124,-332.11069206,0.00026299,2]
[320950330,1711721432133,-199.47120798,0.000263,2]
[320950331,1711721432144,-673.50999,0.000263,2]
[320950332,1711721432155,-6699.80768476,0.000263,2]
[320950333,1711721432168,-271.29633934,0.000263,2]
[320950334,1711721432179,-2642.69004989,0.000263,2]
[320950335,1711721432198,-5221.09491089,0.000263,2]
[320950336,1711721432209,-752.35031756,0.000263,2]
[320950337,1711721432220,-9626.2255661,0.000263,2]
[320950369,1711721437904,-9660.92097243,0.000263,2]
[320950370,1711721437914,-157.24,0.00026533,2]
[320950371,1711721437925,-10989.89,0.00026575,2]
[320950372,1711721437934,-157.24,0.0002661,2]
[320950373,1711721437943,-157.24,0.00026687,2]
[320950374,1711721437953,-157.24,0.00026764,2]
[320950375,1711721437962,-167.0,0.0002678,2]
[320950376,1711721437971,-157.24,0.00026841,2]
[320950377,1711721437981,-157.24,0.00026917,2]
[320950378,1711721437990,-170.70324217,0.00026955,2]
[320950379,1711721437999,-35594.96289219,0.00026971,2]
[320950380,1711721438009,-8193.20933241,0.00026971,2]
[320950381,1711721438018,-167.0,0.00026983,2]
[320950382,1711721438031,-196.26,0.0002699,2]
[320950384,1711721438040,-157.24,0.00026994,2]
[320950386,1711721438050,-258.22521466,0.00026998,2]
[320950388,1711721438059,-157.05505854,0.00026998,2]
[320950390,1711721438069,-783.55059865,0.00026998,2]
[320950392,1711721438079,-793.92154246,0.00026998,2]
[320950394,1711721438088,-232.12321271,0.00026998,2]
[320950396,1711721438098,-375.57152887,0.00026998,2]
[320950398,1711721438107,-166.30093921,0.00026998,2]
[320950400,1711721438117,-437.91010609,0.00026998,2]
[320950402,1711721438127,-554.6523772,0.00026999,2]
[320950404,1711721438136,-10931.76455375,0.00027,2]
[320950406,1711721438146,-267949.79428127,0.00027,2]
[320950408,1711721438155,-157.24,0.00027071,2]
[320950410,1711721438164,-157.24,0.00027148,2]
[320950413,1711721438176,-164.08,0.00027178,2]
[320950415,1711721438185,-157.24,0.00027225,2]